fUSD/lending_fUSD_20240708
["ID","MTS","AMOUNT","RATE_DAILY","PERIOD"]
[331480048,1720437986313,-179.41419417,0.00043489,30]
[331480049,1720437986346,-150.58190966,0.00043787,30]
[331480050,1720437986381,-166.66666666,0.00043981,30]
[331480051,1720437986416,-159.6669257,0.00044073,30]
[331480052,1720437986451,-150.58190966,0.00044128,30]
[331480053,1720437986487,-168.97779033,0.00044335,30]
[331480054,1720437986521,-174.06018697,0.00044359,30]
[331480055,1720437986556,-171.05657452,0.00044367,30]
[331480056,1720437986590,-171.05657452,0.00044369,30]
[331480057,1720437986625,-150.58190966,0.00044404,30]
[331480058,1720437986661,-152.22097569,0.00044427,30]
[331480059,1720437986696,-150.58190966,0.00044939,30]
[331480060,1720437986732,-309.55072232,0.00044959,30]
[331480061,1720437986768,-152.22097569,0.00045398,30]
[331480062,1720437986803,-150.58190966,0.00045598,30]
[331480063,1720437986839,-169.83426132,0.00045652,30]
[331480064,1720437986876,-309.55072232,0.00045772,30]
[331480065,1720437986914,-309.55072232,0.00045995,30]
[331480066,1720437986950,-184.33110178,0.0004611,30]
[331480067,1720437986988,-159.6669257,0.00046394,30]
[331480068,1720437987093,-171.05657452,0.00046476,30]
[331480069,1720437987130,-150.58190966,0.0004648,30]
[331480070,1720437987164,-166.66666666,0.00046555,30]
[331480071,1720437987200,-166.66666666,0.0004657,30]
[331480072,1720437987235,-150.58190966,0.00046791,30]
[331480073,1720437987268,-154.44596459,0.00046949,30]
[331480074,1720437987304,-154.44596459,0.00047284,30]
[331480075,1720437987337,-150.58190966,0.00047309,30]
[331480076,1720437987370,-152.22097569,0.0004747,30]
[331480077,1720437987406,-152.22097569,0.00047596,30]
[331480078,1720437987442,-309.55072232,0.00047642,30]
[331480079,1720437987475,-204.62360067,0.0004786,30]
[331480080,1720437987508,-309.55072232,0.00048205,30]
[331480081,1720437987545,-309.55072232,0.00048214,30]
[331480082,1720437987581,-153.10701036,0.00048243,30]
[331480083,1720437987615,-166.66666666,0.0004885,30]
[331480084,1720437987651,-500.0,0.00049315,120]
[331480085,1720437987684,-500.0,0.00049315,120]
[331480086,1720437987717,-258.24892828,0.00049315,120]
[331480087,1720437987751,-500.0,0.00049315,120]
[331480088,1720437987783,-500.0,0.00049315,120]
[331480089,1720437987822,-500.0,0.00049315,120]
[331480090,1720437987854,-1570.5,0.00049315,120]
[331480091,1720437987887,-500.0,0.00049315,120]
[331480092,1720437987920,-500.0,0.00049315,120]
[331480093,1720437987954,-500.0,0.00049315,120]
[331480094,1720437987987,-1935.41,0.00049315,120]
[331480095,1720437988019,-500.0,0.00049315,120]
[331480096,1720437988052,-500.0,0.00049315,120]
[331480097,1720437988088,-500.0,0.00049315,120]
[331480098,1720437988122,-500.0,0.00049315,120]
[331480099,1720437988156,-500.0,0.00049315,120]
[331480100,1720437988192,-500.0,0.00049315,120]
[331480101,1720437988228,-1670.66,0.00049315,120]
[331480102,1720437988262,-500.0,0.00049315,120]
[331480103,1720437988298,-500.0,0.00049315,120]
[331480104,1720437988330,-5085.83,0.00049315,120]
[331480105,1720437988363,-370.97192958,0.00049315,120]
[331480106,1720437988395,-500.0,0.00049315,120]
[331480107,1720437988430,-500.0,0.00049315,120]
[331480108,1720437988465,-553.47978061,0.00049315,120]
[331480109,1720437988498,-500.0,0.00049315,120]
[331480110,1720437988531,-500.0,0.00049315,120]
[331480111,1720437988568,-500.0,0.00049315,120]
[331480112,1720437988602,-500.0,0.00049315,120]
[331480113,1720437988638,-302.61442617,0.00049315,120]
[331480114,1720437988673,-500.0,0.00049315,120]
[331480115,1720437988708,-500.0,0.00049315,120]
[331480116,1720437988744,-500.0,0.00049315,120]
[331480117,1720437988780,-500.0,0.00049315,120]
[331480118,1720437988817,-500.0,0.00049315,120]
[331480119,1720437988855,-500.0,0.00049315,120]
[331480120,1720437988891,-500.0,0.00049315,120]
[331480121,1720437988927,-500.0,0.00049315,120]
[331480122,1720437988967,-500.0,0.00049315,120]
[331480123,1720437989004,-337.9,0.00049315,120]
[331480124,1720437989043,-500.0,0.00049315,120]
[331480125,1720437989079,-500.0,0.00049315,120]
[331480126,1720437989117,-500.0,0.00049315,120]
[331480127,1720437989153,-771.26,0.00049315,120]
[331480128,1720437989189,-500.0,0.00049315,120]
[331480129,1720437989229,-500.0,0.00049315,120]
[331480130,1720437989267,-500.0,0.00049315,120]
[331480131,1720437989304,-500.0,0.00049315,120]
[331480132,1720437989340,-305.14713831,0.00049315,120]
[331480133,1720437989375,-20855.15,0.00049315,120]
[331480134,1720437989410,-813.82,0.00049315,120]
[331480135,1720437989446,-500.0,0.00049315,120]
[331480136,1720437989482,-263.47276003,0.00049315,120]
[331480137,1720437989516,-500.0,0.00049315,120]
[331480138,1720437989550,-610.76332839,0.00049315,120]
[331480139,1720437989585,-2200.14,0.00049315,120]
[331480140,1720437989619,-500.0,0.00049315,120]
[331480141,1720437989652,-3881.42,0.00049315,120]
[331480142,1720437989685,-500.0,0.00049315,120]
[331480143,1720437989718,-1326.11,0.00049315,120]
[331480144,1720437989753,-305.04871815,0.00049315,120]
[331480145,1720437989787,-593.49100064,0.00049315,120]
[331480146,1720437989822,-500.0,0.00049315,120]
[331480147,1720437989857,-1256.69,0.00049315,120]
[331480148,1720437989891,-500.0,0.00049315,120]
[331480149,1720437989926,-500.0,0.00049315,120]
[331480150,1720437989960,-500.0,0.00049315,120]
[331480151,1720437989993,-245.96144262,0.00049315,120]
[331480152,1720437990027,-618.06093277,0.00049315,120]
[331480153,1720437990062,-1747.96,0.00049315,120]
[331480154,1720437990095,-500.0,0.00049315,120]
[331480155,1720437990127,-164.95213091,0.00049315,120]
[331480156,1720437990160,-500.0,0.00049315,120]
[331480157,1720437990194,-500.0,0.00049315,120]
[331480158,1720437990232,-305.04873645,0.00049315,120]
[331480159,1720437990265,-500.0,0.00049315,120]
[331480160,1720437990299,-500.0,0.00049315,120]
[331480161,1720437990331,-404.00400536,0.00049315,120]
[331480162,1720437990365,-500.0,0.00049315,120]
[331480163,1720437990398,-530.51,0.00049315,120]
[331480164,1720437990435,-500.0,0.00049315,120]
[331480165,1720437990471,-500.0,0.00049315,120]
[331480166,1720437990505,-502.75959746,0.00049315,120]
[331480167,1720437990541,-200.33370064,0.00049315,120]
[331480168,1720437990575,-10457.36,0.00049315,120]
[331480169,1720437990610,-500.0,0.00049315,120]
[331480170,1720437990645,-500.0,0.00049315,120]
[331480171,1720437990680,-500.0,0.00049315,120]
[331480172,1720437990716,-500.0,0.00049315,120]
[331480173,1720437990752,-3955.09,0.00049315,120]
[331480174,1720437990943,-500.0,0.00049315,120]
[331480175,1720437990978,-500.0,0.00049315,120]
[331480176,1720437991012,-207.68208066,0.00049315,120]
[331480177,1720437991046,-500.0,0.00049315,120]
[331480178,1720437991079,-500.0,0.00049315,120]
[331480179,1720437991111,-500.0,0.00049315,120]
[331480180,1720437991144,-500.0,0.00049315,120]
[331480181,1720437991176,-941.75,0.00049315,120]
[331480182,1720437991211,-500.0,0.00049315,120]
[331480183,1720437991244,-500.0,0.00049315,120]
[331480184,1720437991279,-500.0,0.00049315,120]
[331480185,1720437991316,-1163.07,0.00049315,120]
[331480186,1720437991352,-500.0,0.00049315,120]
[331480187,1720437991386,-500.0,0.00049315,120]
[331480188,1720437991420,-500.0,0.00049315,120]
[331480189,1720437991453,-500.0,0.00049315,120]
[331480190,1720437991487,-500.0,0.00049315,120]
[331480191,1720437991521,-500.0,0.00049315,120]
[331480192,1720437991556,-500.0,0.00049315,120]
[331480193,1720437991589,-500.0,0.00049315,120]
[331480194,1720437991623,-500.0,0.00049315,120]
[331480195,1720437991658,-500.0,0.00049315,120]
[331480196,1720437991692,-500.0,0.00049315,120]
[331480197,1720437991725,-500.0,0.00049315,120]
[331480198,1720437991759,-500.0,0.00049315,120]
[331480199,1720437991795,-500.0,0.00049315,120]
[331480200,1720437991829,-915.13,0.00049315,120]
[331480201,1720437991861,-500.0,0.00049315,120]
[331480202,1720437991895,-500.0,0.00049315,120]
[331480203,1720437991928,-500.0,0.00049315,120]
[331480204,1720437991961,-4238.82,0.00049315,120]
[331480205,1720437991994,-532.42,0.00049315,120]
[331480206,1720437992027,-500.0,0.00049315,120]
[331480207,1720437992059,-500.0,0.00049315,120]
[331480208,1720437992089,-500.0,0.00049315,120]
[331480209,1720437992122,-500.0,0.00049315,120]
[331480210,1720437992154,-500.0,0.00049315,120]
[331480211,1720437992185,-500.0,0.00049315,120]
[331480212,1720437992221,-500.0,0.00049315,120]
[331480213,1720437992253,-500.0,0.00049315,120]
[331480214,1720437992285,-500.0,0.00049315,120]
[331480215,1720437992318,-500.0,0.00049315,120]
[331480216,1720437992349,-3090.27,0.00049315,120]
[331480217,1720437992379,-500.0,0.00049315,120]
[331480218,1720437992411,-500.0,0.00049315,120]
[331480219,1720437992443,-321.32056337,0.00049315,120]
[331480220,1720437992474,-500.0,0.00049315,120]
[331480221,1720437992504,-503.50957262,0.00049315,120]
[331480222,1720437992535,-500.0,0.00049315,120]
[331480223,1720437992569,-500.0,0.00049315,120]
[331480224,1720437992604,-511.24,0.00049315,120]
[331480225,1720437992643,-501.99949235,0.00049315,120]
[331480226,1720437992681,-5448.63,0.00049315,120]
[331480227,1720437992717,-215.85668176,0.00049315,120]
[331480228,1720437992752,-233.50865946,0.00049315,120]
[331480229,1720437992788,-2547.29,0.00049315,120]
[331480230,1720437992824,-500.0,0.00049315,120]
[331480231,1720437992858,-2062.26,0.00049315,120]
[331480232,1720437992891,-500.0,0.00049315,120]
[331480233,1720437992924,-4594.83,0.00049315,120]
[331480234,1720437992956,-500.0,0.00049315,120]
[331480235,1720437992987,-500.0,0.00049315,120]
[331480236,1720437993019,-500.0,0.00049315,120]
[331480237,1720437993051,-500.0,0.00049315,120]
[331480238,1720437993084,-1773.39,0.00049315,120]
[331480239,1720437993116,-847.59,0.00049315,120]
[331480240,1720437993149,-722.73,0.00049315,120]
[331480241,1720437993180,-313.07547724,0.00049315,120]
[331480242,1720437993211,-500.0,0.00049315,120]
[331480243,1720437993243,-8365.78,0.00049315,120]
[331480244,1720437993276,-500.0,0.00049315,120]
[331480245,1720437993308,-500.0,0.00049315,120]
[331480246,1720437993339,-500.0,0.00049315,120]
[331480247,1720437993373,-962.79,0.00049315,120]
[331480248,1720437993404,-1826.77,0.00049315,120]
[331480249,1720437993437,-500.0,0.00049315,120]
[331480250,1720437993470,-500.0,0.00049315,120]
[331480251,1720437993503,-500.0,0.00049315,120]
[331480252,1720437993535,-500.0,0.00049315,120]
[331480253,1720437993574,-1768.04,0.00049315,120]
[331480254,1720437993606,-500.0,0.00049315,120]
[331480255,1720437993637,-500.0,0.00049315,120]
[331480256,1720437993671,-1447.56,0.00049315,120]
[331480257,1720437993708,-500.0,0.00049315,120]
[331480258,1720437993740,-4590.57,0.00049315,120]
[331480259,1720437993774,-1801.6,0.00049315,120]
[331480260,1720437993808,-500.0,0.00049315,120]
[331480261,1720437993844,-500.0,0.00049315,120]
[331480262,1720437993879,-500.0,0.00049315,120]
[331480263,1720437993912,-242.91314743,0.00049315,120]
[331480264,1720437994243,-2861.76,0.00049315,120]
[331480265,1720437994280,-500.0,0.00049315,120]
[331480266,1720437994316,-590.89350661,0.00049315,120]
[331480267,1720437994350,-305.01381022,0.00049315,120]
[331480268,1720437994385,-1122.87,0.00049315,120]
[331480269,1720437994420,-224.5454273,0.00049315,120]
[331480270,1720437994454,-500.0,0.00049315,120]
[331480271,1720437994487,-254.73943892,0.00049315,120]
[331480272,1720437994520,-500.0,0.00049315,120]
[331480273,1720437994553,-155.0,0.00049315,120]
[331480274,1720437994588,-6551.73,0.00049315,120]
[331480275,1720437994622,-205.12000798,0.00049315,120]
[331480276,1720437994656,-500.0,0.00049315,120]
[331480277,1720437994689,-526.91,0.00049315,120]
[331480278,1720437994724,-500.0,0.00049315,120]
[331480279,1720437994761,-659.22,0.00049315,120]
[331480280,1720437994795,-500.0,0.00049315,30]
[331480281,1720437994830,-500.0,0.00049315,120]
[331480282,1720437994863,-500.0,0.00049315,120]
[331480283,1720437994896,-314.77,0.00049315,120]
[331480284,1720437994930,-500.0,0.00049315,120]
[331480285,1720437994964,-500.0,0.00049315,120]
[331480286,1720437994999,-500.0,0.00049315,120]
[331480287,1720437995032,-500.0,0.00049315,120]
[331480288,1720437995065,-500.0,0.00049315,120]
[331480289,1720437995099,-686.39,0.00049315,120]
[331480290,1720437995132,-500.0,0.00049315,120]
[331480291,1720437995164,-500.0,0.00049315,120]
[331480292,1720437995202,-1136.27,0.00049315,120]
[331480293,1720437995238,-500.0,0.00049315,120]
[331480294,1720437995275,-500.0,0.00049315,120]
[331480295,1720437995311,-319.97950417,0.00049315,120]
[331480296,1720437995344,-501.79644779,0.00049315,120]
[331480297,1720437995379,-501.37306624,0.00049315,120]
[331480298,1720437995414,-3164.35,0.00049315,120]
[331480299,1720437995448,-500.0,0.00049315,120]
[331480300,1720437995483,-500.0,0.00049315,120]
[331480301,1720437995517,-505.54,0.00049315,120]
[331480302,1720437995551,-1162.49,0.00049315,120]
[331480303,1720437995585,-1906.95,0.00049315,120]
[331480304,1720437995619,-500.0,0.00049315,120]
[331480305,1720437995655,-500.0,0.00049315,120]
[331480306,1720437995691,-500.0,0.00049315,120]
[331480307,1720437995726,-1298.4,0.00049315,120]
[331480308,1720437995763,-500.0,0.00049315,120]
[331480309,1720437995806,-1181.68,0.00049315,120]
[331480310,1720437995843,-2349.1,0.00049315,120]
[331480311,1720437995880,-811.45,0.00049315,120]
[331480312,1720437995918,-500.0,0.00049315,120]
[331480313,1720437995955,-500.0,0.00049315,120]
[331480314,1720437995989,-500.0,0.00049315,120]
[331480315,1720437996022,-500.0,0.00049315,120]
[331480316,1720437996055,-500.0,0.00049315,120]
[331480317,1720437996091,-320.71467811,0.00049315,120]
[331480318,1720437996126,-500.0,0.00049315,120]
[331480319,1720437996160,-2038.75,0.00049315,120]
[331480320,1720437996193,-759.35,0.00049315,120]
[331480321,1720437996231,-1664.25,0.00049315,120]
[331480322,1720437996266,-500.0,0.00049315,120]
[331480323,1720437996301,-500.0,0.00049315,120]
[331480324,1720437996335,-500.0,0.00049315,120]
[331480325,1720437996369,-171.05657452,0.00049449,30]
[331480326,1720437996403,-150.58190966,0.00049534,30]
[331480327,1720437996439,-1082.19,0.00049589,120]
[331480328,1720437996473,-500.0,0.00049589,120]
[331480329,1720437996507,-500.0,0.00049589,120]
[331480330,1720437996543,-500.0,0.00049589,120]
[331480331,1720437996577,-500.0,0.00049589,120]
[331480332,1720437996612,-500.0,0.00049589,120]
[331480333,1720437996648,-1570.5,0.00049589,120]
[331480334,1720437996683,-500.0,0.00049589,120]
[331480335,1720437996782,-161.1929739,0.00049589,120]
[331480336,1720437996817,-500.0,0.00049589,120]
[331480337,1720437996851,-1935.41,0.00049589,120]
[331480338,1720437996886,-500.0,0.00049589,120]
[331480339,1720437996920,-500.0,0.00049589,120]
[331480340,1720437996954,-500.0,0.00049589,120]
[331480341,1720437996987,-500.0,0.00049589,120]
[331480342,1720437997020,-500.0,0.00049589,120]
[331480343,1720437997054,-1670.66,0.00049589,120]
[331480344,1720437997087,-500.0,0.00049589,120]
[331480345,1720437997120,-500.0,0.00049589,120]
[331480346,1720437997153,-5085.83,0.00049589,120]
[331480347,1720437997186,-500.0,0.00049589,120]
[331480348,1720437997227,-500.0,0.00049589,120]
[331480349,1720437997259,-500.0,0.00049589,120]
[331480350,1720437997290,-500.0,0.00049589,120]
[331480351,1720437997323,-500.0,0.00049589,120]
[331480352,1720437997354,-580.43793228,0.00049589,120]
[331480353,1720437997385,-500.0,0.00049589,120]
[331480354,1720437997417,-500.0,0.00049589,120]
[331480355,1720437997448,-500.0,0.00049589,120]
[331480356,1720437997479,-500.0,0.00049589,120]
[331480357,1720437997512,-500.0,0.00049589,120]
[331480358,1720437997545,-500.0,0.00049589,120]
[331480359,1720437997578,-500.0,0.00049589,120]
[331480360,1720437997609,-500.0,0.00049589,120]
[331480361,1720437997641,-500.0,0.00049589,120]
[331480362,1720437997675,-500.0,0.00049589,120]
[331480363,1720437997708,-771.26,0.00049589,120]
[331480364,1720437997739,-500.0,0.00049589,120]
[331480365,1720437997773,-500.0,0.00049589,120]
[331480366,1720437997808,-500.0,0.00049589,120]
[331480367,1720437997842,-500.0,0.00049589,120]
[331480368,1720437997875,-20855.15,0.00049589,120]
[331480369,1720437997908,-813.82,0.00049589,120]
[331480370,1720437997941,-500.0,0.00049589,120]
[331480371,1720437997975,-500.0,0.00049589,120]
[331480372,1720437998009,-2200.14,0.00049589,120]
[331480373,1720437998047,-605.33434725,0.00049589,120]
[331480374,1720437998082,-3881.42,0.00049589,120]
[331480375,1720437998118,-500.0,0.00049589,120]
[331480376,1720437998153,-1326.11,0.00049589,120]
[331480377,1720437998188,-245.56,0.00049589,120]
[331480378,1720437998229,-1256.69,0.00049589,120]
[331480379,1720437998266,-616.02306618,0.00049589,120]
[331480380,1720437998301,-500.0,0.00049589,120]
[331480381,1720437998337,-500.0,0.00049589,120]
[331480382,1720437998370,-1747.96,0.00049589,120]
[331480383,1720437998404,-500.0,0.00049589,120]
[331480384,1720437998440,-500.0,0.00049589,120]
[331480385,1720437998476,-500.0,0.00049589,120]
[331480386,1720437998513,-500.0,0.00049589,120]
[331480387,1720437998550,-500.0,0.00049589,120]
[331480388,1720437998585,-500.0,0.00049589,120]
[331480389,1720437998619,-530.51,0.00049589,120]
[331480390,1720437998655,-500.0,0.00049589,120]
[331480391,1720437998691,-500.0,0.00049589,120]
[331480392,1720437998726,-10457.36,0.00049589,120]
[331480393,1720437998761,-500.0,0.00049589,120]
[331480394,1720437998798,-500.0,0.00049589,120]
[331480395,1720437998834,-500.0,0.00049589,120]
[331480396,1720437998871,-500.0,0.00049589,120]
[331480397,1720437998909,-3955.09,0.00049589,120]
[331480398,1720437998948,-500.0,0.00049589,120]
[331480399,1720437998987,-500.0,0.00049589,120]
[331480400,1720437999027,-215.27383952,0.00049589,120]
[331480401,1720437999064,-498.95979367,0.00049589,120]
[331480402,1720437999103,-500.0,0.00049589,120]
[331480403,1720437999141,-941.75,0.00049589,120]
[331480404,1720437999178,-500.0,0.00049589,120]
[331480405,1720437999214,-500.0,0.00049589,120]
[331480406,1720437999251,-500.0,0.00049589,120]
[331480407,1720437999288,-1163.07,0.00049589,120]
[331480408,1720437999332,-500.0,0.00049589,120]
[331480409,1720437999369,-500.0,0.00049589,120]
[331480410,1720437999409,-500.0,0.00049589,120]
[331480411,1720437999448,-500.0,0.00049589,120]
[331480412,1720437999488,-500.0,0.00049589,120]
[331480413,1720437999526,-500.0,0.00049589,120]
[331480414,1720437999564,-500.0,0.00049589,120]
[331480415,1720437999602,-500.0,0.00049589,120]
[331480416,1720437999638,-500.0,0.00049589,120]
[331480417,1720437999676,-500.0,0.00049589,120]
[331480418,1720437999713,-500.0,0.00049589,120]
[331480419,1720437999750,-500.0,0.00049589,120]
[331480420,1720437999788,-504.11796231,0.00049589,120]
[331480421,1720437999827,-915.13,0.00049589,120]
[331480422,1720437999865,-500.0,0.00049589,120]
[331480423,1720437999904,-500.0,0.00049589,120]
[331480424,1720437999942,-4238.82,0.00049589,120]
[331480425,1720437999980,-532.42,0.00049589,120]
[331480426,1720438000020,-502.01357851,0.00049589,120]
[331480427,1720438000059,-500.0,0.00049589,120]
[331480428,1720438000097,-500.0,0.00049589,120]
[331480429,1720438000134,-500.0,0.00049589,120]
[331480430,1720438000172,-504.3045946,0.00049589,120]
[331480431,1720438000210,-500.0,0.00049589,120]
[331480432,1720438000246,-3090.27,0.00049589,120]
[331480433,1720438000284,-511.24,0.00049589,120]
[331480434,1720438000328,-500.0,0.00049589,120]
[331480435,1720438000364,-500.0,0.00049589,120]
[331480436,1720438000403,-5448.63,0.00049589,120]
[331480437,1720438000441,-500.0,0.00049589,120]
[331480438,1720438000479,-2062.26,0.00049589,120]
[331480439,1720438000519,-2547.29,0.00049589,120]
[331480440,1720438000678,-500.0,0.00049589,120]
[331480441,1720438000720,-4594.83,0.00049589,120]
[331480442,1720438000759,-500.0,0.00049589,120]
[331480443,1720438000796,-500.0,0.00049589,120]
[331480444,1720438000836,-1773.39,0.00049589,120]
[331480445,1720438000874,-847.59,0.00049589,120]
[331480446,1720438000914,-722.73,0.00049589,120]
[331480447,1720438000952,-619.43485608,0.00049589,120]
[331480448,1720438000991,-8365.78,0.00049589,120]
[331480449,1720438001028,-500.0,0.00049589,120]
[331480450,1720438001065,-500.0,0.00049589,120]
[331480451,1720438001102,-962.79,0.00049589,120]
[331480452,1720438001139,-1826.77,0.00049589,120]
[331480453,1720438001176,-500.0,0.00049589,120]
[331480454,1720438001212,-500.0,0.00049589,120]
[331480455,1720438001248,-500.0,0.00049589,120]
[331480456,1720438001284,-500.0,0.00049589,120]
[331480457,1720438001319,-1768.04,0.00049589,120]
[331480458,1720438001354,-500.0,0.00049589,120]
[331480459,1720438001390,-504.94008064,0.00049589,120]
[331480460,1720438001426,-1447.56,0.00049589,120]
[331480461,1720438001463,-4590.57,0.00049589,120]
[331480462,1720438001498,-1801.6,0.00049589,120]
[331480463,1720438001532,-500.0,0.00049589,120]
[331480464,1720438001566,-500.0,0.00049589,120]
[331480465,1720438001601,-2861.76,0.00049589,120]
[331480466,1720438001636,-500.0,0.00049589,120]
[331480467,1720438001672,-1122.87,0.00049589,120]
[331480468,1720438001705,-500.0,0.00049589,120]
[331480469,1720438001738,-500.0,0.00049589,120]
[331480470,1720438001772,-6551.73,0.00049589,120]
[331480471,1720438001808,-500.0,0.00049589,120]
[331480472,1720438001842,-526.91,0.00049589,120]
[331480473,1720438001876,-500.0,0.00049589,120]
[331480474,1720438001912,-659.22,0.00049589,120]
[331480475,1720438001950,-500.0,0.00049589,30]
[331480476,1720438001986,-500.0,0.00049589,120]
[331480477,1720438002021,-314.77,0.00049589,120]
[331480478,1720438002056,-500.0,0.00049589,120]
[331480479,1720438002092,-500.0,0.00049589,120]
[331480480,1720438002127,-500.0,0.00049589,120]
[331480481,1720438002160,-500.0,0.00049589,120]
[331480482,1720438002193,-686.39,0.00049589,120]
[331480483,1720438002232,-500.0,0.00049589,120]
[331480484,1720438002266,-1136.27,0.00049589,120]
[331480485,1720438002302,-500.0,0.00049589,120]
[331480486,1720438002336,-485.35385282,0.00049589,120]
[331480487,1720438002370,-3164.35,0.00049589,120]
[331480488,1720438002403,-505.54,0.00049589,120]
[331480489,1720438002436,-270.67653065,0.00049589,30]
[331480490,1720438002470,-1162.49,0.00049589,120]
[331480491,1720438002502,-1906.95,0.00049589,120]
[331480492,1720438002536,-500.0,0.00049589,120]
[331480493,1720438002571,-500.0,0.00049589,120]
[331480494,1720438002605,-500.0,0.00049589,120]
[331480495,1720438002638,-1298.4,0.00049589,120]
[331480496,1720438002672,-500.0,0.00049589,120]
[331480497,1720438002706,-1181.68,0.00049589,120]
[331480498,1720438002739,-2349.1,0.00049589,120]
[331480499,1720438002772,-811.45,0.00049589,120]
[331480500,1720438002806,-500.0,0.00049589,120]
[331480501,1720438002845,-616.10289954,0.00049589,120]
[331480502,1720438002879,-500.0,0.00049589,120]
[331480503,1720438002912,-500.0,0.00049589,120]
[331480504,1720438002947,-500.0,0.00049589,120]
[331480505,1720438002982,-500.0,0.00049589,120]
[331480506,1720438003015,-2038.75,0.00049589,120]
[331480507,1720438003049,-759.35,0.00049589,120]
[331480508,1720438003083,-1664.25,0.00049589,120]
[331480509,1720438003116,-500.0,0.00049589,120]
[331480510,1720438003149,-500.0,0.00049589,120]
[331480511,1720438003183,-500.0,0.00049589,120]
[331480512,1720438003217,-152.22097569,0.0004979,30]
[331480513,1720438003250,-166.6666667,0.00049816,30]
[331480514,1720438003286,-1257.97,0.00049863,120]
[331480515,1720438003319,-4945.17,0.00049863,120]
[331480516,1720438003350,-500.0,0.00049863,120]
[331480517,1720438003381,-3615.09,0.00049863,120]
[331480518,1720438003414,-500.0,0.00049863,120]
[331480519,1720438003447,-150.0,0.00049863,120]
[331480520,1720438003479,-500.0,0.00049863,120]
[331480521,1720438003512,-2750.23,0.00049863,120]
[331480522,1720438003547,-1195.11,0.00049863,120]
[331480523,1720438003583,-500.0,0.00049863,120]
[331480524,1720438003619,-500.0,0.00049863,120]
[331480525,1720438003655,-500.0,0.00049863,120]
[331480526,1720438003688,-2303.83,0.00049863,120]
[331480527,1720438003723,-500.0,0.00049863,120]
[331480528,1720438003759,-1030.01,0.00049863,120]
[331480529,1720438003796,-500.0,0.00049863,120]
[331480530,1720438004195,-500.0,0.00049863,120]
[331480531,1720438004234,-500.0,0.00049863,120]
[331480532,1720438004272,-1108.77,0.00049863,120]
[331480533,1720438004307,-500.0,0.00049863,120]
[331480534,1720438004343,-1037.41,0.00049863,120]
[331480535,1720438004380,-500.0,0.00049863,120]
[331480536,1720438004415,-1129.3,0.00049863,120]
[331480537,1720438004449,-500.0,0.00049863,120]
[331480538,1720438004484,-500.0,0.00049863,120]
[331480539,1720438004520,-500.0,0.00049863,120]
[331480540,1720438004555,-500.0,0.00049863,120]
[331480541,1720438004589,-500.0,0.00049863,120]
[331480542,1720438004624,-500.0,0.00049863,120]
[331480543,1720438004658,-500.0,0.00049863,120]
[331480544,1720438004694,-500.0,0.00049863,120]
[331480545,1720438004730,-471.98257203,0.00049863,120]
[331480546,1720438004765,-3645.11,0.00049863,120]
[331480547,1720438004800,-500.0,0.00049863,120]